[Event "6e Open International d'Echecs des Sable"]
[Site "Sables d'Olonne, France"]
[Date "2019.07.19"]
[Round "9.6"]
[White "Mariette, Lucas"]
[Black "Picart, Laurent"]
[Result "1-0"]
[ECO "C06"]
[WhiteElo "2244"]
[BlackElo "2061"]
[Annotator "jeanluc"]
[PlyCount "57"]
[EventDate "2019.??.??"]
[TimeControl "1/40:0"]
[WhiteClock "0:40:12"]
[BlackClock "0:20:33"]

1. e4 {[%emt 0:00:00]} e6 {[%emt 0:00:00]} 2. d4 {[%emt 0:00:00]} d5 {[%emt 0:
00:00]} 3. Nd2 {[%emt 0:00:00]} Be7 {[%emt 0:00:00]} 4. Ngf3 {[%emt 0:00:00]}
Nf6 {[%emt 0:00:00]} 5. e5 {[%emt 0:00:00]} Nfd7 {[%emt 0:00:00]} 6. Bd3 {
[%emt 0:00:00]} c5 {[%emt 0:00:00]} 7. c3 {[%emt 0:00:00]} Nc6 {[%emt 0:00:00]}
8. O-O {[%emt 0:00:00]} g5 {[%emt 0:00:00]} 9. h3 {[%emt 0:00:00]} h5 {[%emt 0:
00:00]} 10. g4 {[%emt 0:00:00]} cxd4 {[%emt 0:00:00]} 11. cxd4 {[%emt 0:00:00]}
Qb6 {[%emt 0:00:00]} 12. Nb3 {[%emt 0:00:00]} a5 {[%emt 0:00:00]} 13. a4 {
[%emt 0:00:00]} hxg4 {[%emt 0:00:00]} 14. hxg4 {[%emt 0:00:00]} Rh3 {[%emt 0:
00:00]} 15. Bb5 {[%emt 0:00:00]} Rxf3 {[%emt 0:00:00]} 16. Qxf3 {[%emt 0:00:00]
} Nxd4 {[%emt 0:00:00]} 17. Nxd4 {[%emt 0:00:00]} Qxd4 {[%emt 0:00:00]} 18. Re1
{[%emt 0:00:00]} Kf8 {[%emt 0:00:00]} 19. Qh3 {[%emt 0:00:00]} Kg7 {[%emt 0:00:
00]} 20. Bd3 {[%emt 0:00:00]} Nf8 {[%emt 0:00:00]} 21. Kg2 {[%emt 0:00:00]} Ng6
{[%emt 0:00:00]} 22. Bxg6 {[%emt 0:00:00]} fxg6 {[%emt 0:00:00]} 23. Rh1 {
[%emt 0:00:00]} Kf7 {[%emt 0:00:00]} 24. Qg3 {[%emt 0:00:00]} b6 {[%emt 0:00:
00]} 25. Rh7+ {[%emt 0:00:00]} Ke8 {[%emt 0:00:00]} 26. Qf3 {[%emt 0:00:00]}
Qe4 {[%emt 0:00:00]} 27. Qxe4 {[%emt 0:00:00]} dxe4 {[%emt 0:00:00]} 28. Be3 {
[%emt 0:03:26]} Bf8 {[%emt 0:01:07]} 29. Rh5 1-0

[Event "6e Open International d'Echecs des Sable"]
[Site "Sables d'Olonne, France"]
[Date "2019.07.19"]
[Round "9.7"]
[White "Redondo Arguelles, Graciela"]
[Black "Dalaud, Dorian"]
[Result "1-0"]
[ECO "B22"]
[WhiteElo "2043"]
[BlackElo "2220"]
[Annotator "jeanluc"]
[PlyCount "51"]
[EventDate "2019.??.??"]
[TimeControl "1/40:0"]
[WhiteClock "0:11:36"]
[BlackClock "0:24:08"]

1. e4 {[%emt 0:00:00]} c5 {[%emt 0:00:00]} 2. c3 {[%emt 0:00:00]} d5 {[%emt 0:
00:00]} 3. exd5 {[%emt 0:00:00]} Qxd5 {[%emt 0:00:00]} 4. d4 {[%emt 0:00:00]}
Nc6 {[%emt 0:00:00]} 5. Nf3 {[%emt 0:00:00]} Bf5 {[%emt 0:00:00]} 6. Be3 {
[%emt 0:00:00]} cxd4 {[%emt 0:00:00]} 7. cxd4 {[%emt 0:00:00]} Bxb1 {[%emt 0:
00:00]} 8. Rxb1 {[%emt 0:00:00]} e6 {[%emt 0:00:00]} 9. a3 {[%emt 0:00:00]} Nf6
{[%emt 0:00:00]} 10. Be2 {[%emt 0:00:00]} Bd6 {[%emt 0:00:00]} 11. O-O {
[%emt 0:00:00]} O-O {[%emt 0:00:00]} 12. h3 {[%emt 0:00:00]} Rac8 {[%emt 0:00:
00]} 13. Rc1 {[%emt 0:00:00]} Bb8 {[%emt 0:00:00]} 14. b4 {[%emt 0:00:00]} Qd6
{[%emt 0:00:00]} 15. Qd3 {[%emt 0:00:00]} Nd5 {[%emt 0:00:00]} 16. Rc5 {
[%emt 0:00:00]} b6 {[%emt 0:00:00]} 17. Rc4 {[%emt 0:00:00]} e5 {[%emt 0:00:00]
} 18. g3 {[%emt 0:00:00]} e4 {[%emt 0:00:00]} 19. Qxe4 {[%emt 0:00:00]} Rfe8 {
[%emt 0:00:00]} 20. Qg4 {[%emt 0:00:00]} h5 {[%emt 0:00:00]} 21. Qxh5 {[%emt 0:
00:00]} Nxe3 {[%emt 0:00:00]} 22. Ng5 {[%emt 0:00:59]} Qg6 {[%emt 0:00:00]} 23.
Qxg6 {[%emt 0:00:23]} fxg6 {[%emt 0:00:00]} 24. fxe3 {[%emt 0:00:17]} Ne7 {
[%emt 0:00:00]} 25. Rxc8 {[%emt 0:03:50]} Rxc8 {[%emt 0:00:00]} 26. Bg4 {
[%emt 0:00:15]} 1-0